fUSD/lending_fUSD_20250911
["ID","MTS","AMOUNT","RATE_DAILY","PERIOD"]
[384933066,1757627575131,-2234.85,0.0003041,7]
[384933067,1757627575140,-437.66293479,0.0003041,7]
[384933068,1757627575149,-1046.34,0.0003041,7]
[384933069,1757627575159,-1220.02,0.0003041,7]
[384933070,1757627575168,-2770.33,0.0003041,7]
[384933071,1757627575176,-482.39,0.0003041,7]
[384933072,1757627575185,-436.15,0.0003041,7]
[384933073,1757627575194,-1846.46,0.0003041,7]
[384933074,1757627575203,-400.0,0.0003041,7]
[384933075,1757627575211,-400.0,0.0003041,7]
[384933076,1757627575220,-1730.33,0.0003041,7]
[384933077,1757627575229,-1786.28,0.0003041,7]
[384933078,1757627575238,-1957.68,0.0003041,7]
[384933079,1757627575247,-1265.01,0.0003041,7]
[384933080,1757627575256,-407.19,0.0003041,7]
[384933081,1757627575266,-688.3,0.0003041,7]
[384933082,1757627575275,-2703.11,0.0003041,7]
[384933083,1757627575285,-678.34,0.0003041,7]
[384933084,1757627575294,-2568.73,0.0003041,7]
[384933085,1757627575303,-3106.86,0.0003041,7]
[384933086,1757627575312,-1591.84,0.0003041,7]
[384933087,1757627575321,-2512.36,0.0003041,7]
[384933088,1757627575331,-423.35,0.0003041,7]
[384933089,1757627575340,-2358.62,0.0003041,7]
[384933090,1757627575351,-655.76,0.0003041,7]
[384933091,1757627575361,-655.88,0.0003041,7]
[384933092,1757627575371,-1989.93,0.0003041,7]
[384933093,1757627575381,-400.0,0.0003041,7]
[384933094,1757627575390,-6625.15,0.0003041,7]
[384933095,1757627575399,-400.0,0.0003041,7]
[384933096,1757627575408,-1565.73,0.0003041,7]
[384933097,1757627575418,-2433.07,0.0003041,7]
[384933098,1757627575427,-248.32396444,0.0003041,7]
[384933099,1757627575436,-2320.6,0.0003041,7]
[384933100,1757627575446,-1949.62,0.0003041,7]
[384933101,1757627575455,-400.0,0.0003041,7]
[384933102,1757627575464,-2218.78,0.0003041,7]
[384933103,1757627575474,-3743.48,0.0003041,7]
[384933104,1757627575483,-581.88,0.0003041,7]
[384933105,1757627575494,-1700.41,0.0003041,7]
[384933106,1757627575503,-601.83,0.0003041,7]
[384933107,1757627575511,-2332.54,0.0003041,7]
[384933108,1757627575520,-726.15,0.0003041,7]
[384933109,1757627575530,-2249.08,0.0003041,7]
[384933110,1757627575539,-2742.88,0.0003041,7]
[384933111,1757627575549,-877.79,0.0003041,7]
[384933112,1757627575558,-2125.99,0.0003041,7]
[384933113,1757627575567,-400.0,0.0003041,7]
[384933114,1757627575576,-400.0,0.0003041,7]
[384933115,1757627575586,-1691.78,0.0003041,7]
[384933116,1757627575595,-2192.92,0.0003041,7]
[384933117,1757627575604,-2438.57,0.0003041,7]
[384933118,1757627575613,-1723.17,0.0003041,7]
[384933119,1757627575622,-2371.58,0.0003041,7]
[384933120,1757627575631,-882.4,0.0003041,7]
[384933121,1757627575640,-2985.19,0.0003041,7]
[384933122,1757627575649,-228.20252592,0.0003041,7]
[384933123,1757627576487,-2744.75747408,0.0003041,7]
[384933124,1757627576498,-849.58,0.0003041,7]
[384933125,1757627576509,-512.39,0.0003041,7]
[384933126,1757627576519,-3150.88,0.0003041,7]
[384933127,1757627576528,-2678.71,0.0003041,7]
[384933128,1757627576538,-1003.52,0.0003041,7]
[384933129,1757627576549,-764.35,0.0003041,7]
[384933130,1757627576559,-2578.26,0.0003041,7]
[384933131,1757627576569,-2234.94,0.0003041,7]
[384933132,1757627576578,-1462.94,0.0003041,7]
[384933133,1757627576588,-1828.11,0.0003041,7]
[384933134,1757627576598,-470.08,0.0003041,7]
[384933135,1757627576608,-1307.56,0.0003041,7]
[384933136,1757627576617,-400.0,0.0003041,7]
[384933137,1757627576627,-1772.99,0.0003041,7]
[384933138,1757627576637,-2097.33,0.0003041,7]
[384933139,1757627576647,-933.0,0.0003041,7]
[384933140,1757627576656,-952.28,0.0003041,7]
[384933141,1757627576666,-1662.68,0.0003041,7]
[384933142,1757627576676,-610.96,0.0003041,7]
[384933143,1757627576685,-7841.89,0.0003041,7]
[384933144,1757627576695,-400.0,0.0003041,7]
[384933145,1757627576706,-400.0,0.0003041,7]
[384933146,1757627576715,-1604.78,0.0003041,7]
[384933147,1757627576725,-1587.28,0.0003041,7]
[384933148,1757627576735,-2174.86,0.0003041,7]
[384933149,1757627576745,-11061.06,0.0003041,7]
[384933150,1757627576755,-1272.03,0.0003041,7]
[384933151,1757627576765,-400.0,0.0003041,7]
[384933152,1757627576774,-596.32,0.0003041,7]
[384933153,1757627576784,-565.46,0.0003041,7]
[384933154,1757627576794,-2131.53,0.0003041,7]
[384933155,1757627576804,-2498.42,0.0003041,7]
[384933156,1757627576813,-4197.61610983,0.0003041,7]
[384933157,1757627577844,-197.51603652,0.00027297,2]
[384933158,1757627577855,-2757.782727,0.00027397,7]
[384933159,1757627577865,-1000.0,0.00027397,7]
[384933160,1757627577876,-400.0,0.00027397,7]
[384933161,1757627577886,-400.0,0.00027397,7]
[384933162,1757627577895,-400.0,0.00027397,7]
[384933163,1757627577905,-400.0,0.00027397,7]
[384933164,1757627577915,-400.0,0.00027397,7]
[384933165,1757627577924,-400.0,0.00027397,7]
[384933166,1757627577934,-400.0,0.00027397,7]
[384933167,1757627577944,-400.0,0.00027397,7]
[384933168,1757627577954,-400.0,0.00027397,7]
[384933169,1757627577964,-400.0,0.00027397,7]
[384933170,1757627577973,-400.0,0.00027397,7]
[384933171,1757627577983,-400.0,0.00027397,7]
[384933172,1757627577994,-400.0,0.00027671,7]
[384933173,1757627578004,-1000.0,0.00027671,7]
[384933174,1757627578014,-2757.782727,0.00027671,7]
[384933175,1757627578025,-2757.782727,0.00027671,7]
[384933176,1757627578035,-400.0,0.00027671,7]
[384933177,1757627578045,-400.0,0.00027671,7]
[384933178,1757627578055,-2757.782723,0.00027671,7]
[384933179,1757627578065,-400.0,0.00027671,7]
[384933180,1757627578075,-400.0,0.00027671,7]
[384933181,1757627578085,-400.0,0.00027671,7]
[384933182,1757627578095,-400.0,0.00027671,7]
[384933183,1757627578104,-400.0,0.00027671,7]
[384933184,1757627578114,-150.0,0.00027675,2]
[384933185,1757627578125,-500.0,0.00027944,2]
[384933186,1757627578135,-500.0,0.00027944,2]
[384933187,1757627578146,-400.0,0.00027945,7]
[384933188,1757627578156,-400.0,0.00027945,7]
[384933189,1757627578166,-500.0,0.00028218,2]
[384933190,1757627578176,-500.0,0.00028218,2]
[384933191,1757627578186,-500.0,0.00028218,2]
[384933192,1757627578196,-500.0,0.00028218,2]
[384933193,1757627578206,-500.0,0.00028218,2]
[384933194,1757627578216,-500.0,0.00028492,2]
[384933195,1757627578226,-500.0,0.00028492,2]
[384933196,1757627578236,-464.85644838,0.00028492,2]
[384933197,1757627578246,-2290.95389017,0.0003041,7]
[384933198,1757627578256,-5525.7,0.0003041,7]
[384933199,1757627578266,-1601.69,0.0003041,7]
[384933200,1757627578277,-455.17,0.0003041,7]
[384933201,1757627578287,-1668.79,0.0003041,7]
[384933202,1757627578297,-1352.16,0.0003041,7]
[384933203,1757627578306,-11877.61,0.0003041,7]
[384933204,1757627578316,-2986.7,0.0003041,7]
[384933205,1757627578326,-400.0,0.0003041,7]
[384933206,1757627578335,-400.0,0.0003041,7]
[384933207,1757627578345,-2328.89,0.0003041,7]
[384933208,1757627578358,-4724.84,0.0003041,7]
[384933209,1757627578368,-400.0,0.0003041,7]
[384933210,1757627578379,-2071.12,0.0003041,7]
[384933211,1757627578396,-3292.32,0.0003041,7]
[384933212,1757627578406,-400.0,0.0003041,7]
[384933213,1757627578416,-454.85203217,0.0003041,7]
[384933214,1757627578427,-657.95,0.0003041,7]
[384933215,1757627578437,-2017.2,0.0003041,7]
[384933216,1757627578448,-2362.15,0.0003041,7]
[384933217,1757627578458,-1981.94,0.0003041,7]
[384933218,1757627578468,-914.7,0.0003041,7]
[384933219,1757627578479,-710.2,0.0003041,7]
[384933220,1757627578489,-847.93,0.0003041,7]
[384933221,1757627578500,-1045.52,0.0003041,7]
[384933222,1757627578509,-752.72,0.0003041,7]
[384933223,1757627578520,-2021.8,0.0003041,7]
[384933224,1757627578534,-2367.19,0.0003041,7]
[384933225,1757627578547,-1204.45,0.0003041,7]
[384933226,1757627578558,-1922.67,0.0003041,7]
[384933227,1757627578812,-2147.9,0.0003041,7]
[384933228,1757627578831,-400.0,0.0003041,7]
[384933229,1757627578850,-610.19,0.0003041,7]
[384933230,1757627578859,-737.4,0.0003041,7]
[384933231,1757627578869,-2005.27,0.0003041,7]
[384933232,1757627578878,-2282.8,0.0003041,7]
[384933233,1757627578887,-868.86,0.0003041,7]
[384933234,1757627578897,-2067.86,0.0003041,7]
[384933235,1757627578906,-1662.86,0.0003041,7]
[384933236,1757627578915,-339.78,0.0003041,7]
[384933237,1757627578924,-973.3,0.0003041,7]
[384933238,1757627578934,-581.46,0.0003041,7]
[384933239,1757627578943,-2104.81,0.0003041,7]
[384933240,1757627578953,-901.74,0.0003041,7]
[384933241,1757627578962,-3042.61,0.0003041,7]
[384933242,1757627578971,-633.32,0.0003041,7]
[384933243,1757627578981,-1564.75,0.0003041,7]
[384933244,1757627578990,-406.9,0.0003041,7]
[384933245,1757627578999,-2798.29,0.0003041,7]
[384933246,1757627579008,-473.92,0.0003041,7]
[384933247,1757627579017,-1232.08,0.0003041,7]
[384933248,1757627579026,-825.48,0.0003041,7]
[384933249,1757627579035,-1649.61,0.0003041,7]
[384933250,1757627579045,-400.0,0.0003041,7]
[384933251,1757627579054,-401.49,0.0003041,7]
[384933252,1757627579062,-493.86,0.0003041,7]
[384933253,1757627579071,-2428.81,0.0003041,7]
[384933254,1757627579080,-545.25,0.0003041,7]
[384933255,1757627579089,-3292.07,0.0003041,7]
[384933256,1757627579099,-400.0,0.0003041,7]
[384933257,1757627579107,-1770.26,0.0003041,7]
[384933258,1757627579117,-400.0,0.0003041,7]
[384933259,1757627579126,-400.0,0.0003041,7]
[384933260,1757627579135,-1537.35,0.0003041,7]
[384933261,1757627579145,-575.7,0.0003041,7]
[384933262,1757627579154,-2235.0,0.0003041,7]
[384933263,1757627579163,-4315.46,0.0003041,7]
[384933264,1757627579173,-2043.23,0.0003041,7]
[384933265,1757627579182,-542.72,0.0003041,7]
[384933266,1757627579191,-497.85,0.0003041,7]
[384933267,1757627579200,-774.82,0.0003041,7]
[384933268,1757627579210,-2030.44,0.0003041,7]
[384933269,1757627579219,-444.49,0.0003041,7]
[384933270,1757627579228,-400.0,0.0003041,7]
[384933271,1757627579238,-2457.19,0.0003041,7]
[384933272,1757627579247,-400.0,0.0003041,7]
[384933273,1757627579256,-2221.42,0.0003041,7]
[384933274,1757627579265,-2267.83,0.0003041,7]
[384933275,1757627579274,-400.0,0.0003041,7]
[384933276,1757627579283,-400.0,0.0003041,7]
[384933277,1757627579291,-1381.33,0.0003041,7]
[384933278,1757627579301,-400.0,0.0003041,7]
[384933279,1757627579310,-400.0,0.0003041,7]
[384933280,1757627579319,-977.79,0.0003041,7]
[384933281,1757627579328,-2044.64,0.0003041,7]
[384933282,1757627579337,-400.0,0.0003041,7]
[384933283,1757627579346,-353.72921308,0.0003041,7]
[384933284,1757627580066,-400.0,0.00027397,7]
[384933285,1757627580077,-400.0,0.00027397,7]
[384933286,1757627580086,-400.0,0.00027397,7]
[384933287,1757627580095,-353.21254254,0.00027397,7]
[384933288,1757627580107,-190.17745746,0.00027397,7]
[384933289,1757627580118,-400.0,0.00027397,7]
[384933290,1757627580127,-127.22254234,0.00027397,7]
[384933291,1757627580139,-272.77745766,0.00027397,7]
[384933292,1757627580149,-400.0,0.00027397,7]
[384933293,1757627580159,-400.0,0.00027397,7]
[384933294,1757627580169,-400.0,0.00027397,7]
[384933295,1757627580178,-21.12014483,0.00027397,7]
[384933296,1757627580190,-378.87985517,0.00027397,7]
[384933297,1757627580199,-400.0,0.00027397,7]
[384933298,1757627580208,-400.0,0.00027671,7]
[384933299,1757627580218,-400.0,0.00027671,7]
[384933300,1757627580227,-543.39,0.00027671,7]
[384933301,1757627580237,-400.0,0.00027671,7]
[384933302,1757627580246,-400.0,0.00027671,7]
[384933303,1757627580256,-400.0,0.00027671,7]
[384933304,1757627580266,-400.0,0.00027671,7]
[384933305,1757627580275,-400.0,0.00027945,7]
[384933306,1757627580284,-400.0,0.00027945,7]
[384933307,1757627580294,-543.39,0.00027945,7]
[384933308,1757627580303,-400.0,0.00027945,7]
[384933309,1757627580314,-400.0,0.00027945,7]
[384933310,1757627580326,-529.14,0.00028219,7]
[384933311,1757627580337,-543.39,0.00028219,7]
[384933312,1757627580347,-400.0,0.00028219,7]
[384933313,1757627580360,-1007.0,0.000284,2]
[384933314,1757627580375,-543.39,0.00028493,7]
[384933315,1757627580386,-543.39,0.00028767,7]
[384933316,1757627580399,-543.39,0.00029041,7]
[384933317,1757627580411,-242.49078692,0.0003041,7]
[384933318,1757627580423,-1597.41,0.0003041,7]
[384933319,1757627580436,-1990.61,0.0003041,7]
[384933320,1757627580448,-1787.37,0.0003041,7]
[384933321,1757627580460,-500.0,0.00030411,7]
[384933322,1757627580471,-500.0,0.00030411,7]
[384933323,1757627580483,-500.0,0.00030411,7]
[384933324,1757627580495,-500.0,0.00030411,7]
[384933325,1757627580507,-3492.0,0.00030411,7]
[384933326,1757627580519,-616.7307764,0.00030412,5]
[384933327,1757627580533,-2383.2692236,0.00030412,5]
[384933328,1757627580544,-3000.0,0.00030412,5]
[384933329,1757627580556,-500.0,0.00030444,7]
[384933330,1757627580568,-600.0,0.00030458,7]
[384933331,1757627580580,-150.0,0.0003046,2]
[384933332,1757627580591,-257.33736157,0.00030462,2]
[384933333,1757627580603,-1200.0,0.00030462,7]
[384933334,1757627580614,-327.97899024,0.00030464,2]
[384933335,1757627580627,-398.62061891,0.00030466,2]
[384933336,1757627580637,-469.26224757,0.00030469,2]
[384933337,1757627580649,-539.90387624,0.00030471,2]
[384933338,1757627580660,-610.54550491,0.00030473,2]
[384933339,1757627580672,-681.18713358,0.00030476,2]
[384933340,1757627580682,-751.82876224,0.00030478,2]
[384933341,1757627580694,-822.47039091,0.0003048,2]
[384933342,1757627580706,-1500.0,0.00030509,7]
[384933343,1757627580718,-265.7205,0.0003054,2]
[384933344,1757627580729,-194.22,0.00030553,2]
[384933345,1757627580741,-500.0,0.00030554,7]
[384933346,1757627580752,-4167.0,0.00030559,2]
[384933347,1757627580761,-500.0,0.00030599,7]
[384933348,1757627580773,-524.95802244,0.00030617,10]
[384933349,1757627580784,-500.0,0.00030648,7]
[384933350,1757627580797,-500.0,0.00030652,7]
[384933351,1757627580808,-222.90160042,0.00030664,5]
[384933352,1757627580820,-2500.0,0.00030664,5]
[384933353,1757627580832,-500.0,0.00030669,7]
[384933354,1757627580843,-1800.0,0.00030677,7]
[384933355,1757627580854,-600.0,0.00030683,7]
[384933356,1757627580865,-2430.85,0.00030684,7]
[384933357,1757627580877,-537.34,0.00030684,7]
[384933358,1757627580889,-436.24,0.00030684,7]
[384933359,1757627580901,-622.97,0.00030684,7]
[384933360,1757627580912,-400.0,0.00030684,7]
[384933361,1757627580923,-602.77,0.00030684,7]
[384933362,1757627580934,-904.0860394,0.00030684,7]
[384933363,1757627580949,-638.9239606,0.00030684,7]
[384933364,1757627580960,-400.0,0.00030684,7]
[384933365,1757627580972,-502.36,0.00030684,7]
[384933366,1757627580983,-607.91,0.00030684,7]
[384933367,1757627580995,-474.04,0.00030684,7]
[384933368,1757627581006,-422.29,0.00030684,7]
[384933369,1757627581018,-521.3,0.00030684,7]
[384933370,1757627581030,-578.72,0.00030684,7]
[384933371,1757627581041,-400.0,0.00030684,7]
[384933372,1757627581053,-400.0,0.00030684,7]
[384933373,1757627581064,-1088.02,0.00030684,7]
[384933374,1757627581076,-1205.28,0.00030684,7]
[384933375,1757627581088,-432.28,0.00030684,7]
[384933376,1757627581099,-400.0,0.00030684,7]
[384933377,1757627581109,-832.75,0.00030684,7]
[384933378,1757627581121,-400.0,0.00030684,7]
[384933379,1757627581133,-904.85,0.00030684,7]
[384933380,1757627581144,-557.25138561,0.00030684,7]
[384933381,1757627581159,-128.54861439,0.00030684,7]
[384933382,1757627581170,-517.06,0.00030684,7]
[384933383,1757627581182,-1008.26,0.00030684,7]
[384933384,1757627581194,-1113.46,0.00030684,7]
[384933385,1757627581205,-655.45,0.00030684,7]
[384933386,1757627581216,-400.0,0.00030684,7]
[384933387,1757627581225,-738.23,0.00030684,7]
[384933388,1757627581237,-567.18,0.00030684,7]
[384933389,1757627581249,-464.24,0.00030684,7]
[384933390,1757627581256,-738.23,0.00030684,7]
[384933391,1757627581264,-400.0,0.00030684,7]
[384933392,1757627581271,-54.03710064,0.00030684,7]
[384933393,1757627581280,-345.96289936,0.00030684,7]
[384933394,1757627581287,-112.16802664,0.00030684,7]
[384933395,1757627581296,-476.59197336,0.00030684,7]
[384933396,1757627581304,-607.0,0.00030684,7]
[384933397,1757627581310,-595.56,0.00030684,7]
[384933398,1757627581316,-541.07,0.00030684,7]
[384933399,1757627581324,-3.52466664,0.00030684,7]
[384933400,1757627581336,-435.78533336,0.00030684,7]
[384933401,1757627581345,-400.0,0.00030684,7]
[384933402,1757627581357,-995.46,0.00030684,7]
[384933403,1757627581366,-303.03728225,0.00030684,7]
[384933404,1757627581377,-96.96271775,0.00030684,7]
[384933405,1757627581387,-1159.7,0.00030684,7]
[384933406,1757627581397,-404.78,0.00030684,7]
[384933407,1757627581406,-400.0,0.00030684,7]
[384933408,1757627581416,-892.23,0.00030684,7]
[384933409,1757627581426,-568.18,0.00030684,7]
[384933410,1757627581435,-403.03,0.00030684,7]
[384933411,1757627581445,-345.91891089,0.00030684,7]
[384933412,1757627581461,-543.39,0.00029315,7]
[384933413,1757627581470,-1055.26108911,0.00030684,7]
[384933414,1757627581480,-458.22,0.00030684,7]
[384933415,1757627581490,-400.0,0.00030684,7]
[384933416,1757627581499,-653.84,0.00030684,7]
[384933417,1757627581509,-1579.45,0.00030684,7]
[384933418,1757627581518,-596.11,0.00030684,7]
[384933419,1757627581529,-614.15,0.00030684,7]
[384933420,1757627581538,-400.0,0.00030684,7]
[384933421,1757627581547,-400.0,0.00030684,7]
[384933422,1757627581557,-1230.72788006,0.00030684,7]
[384933423,1757627581574,-400.0,0.00027945,7]
[384933424,1757627581584,-483.49211994,0.00030684,7]
[384933425,1757627581594,-517.47,0.00030684,7]
[384933426,1757627581603,-155.93997817,0.00030684,7]
[384933427,1757627581629,-400.0,0.00027397,7]
[384933428,1757627581639,-400.0,0.00027671,7]
[384933429,1757627581648,-400.0,0.00028219,7]
[384933430,1757627581657,-415.513,0.00029816,15]
[384933431,1757627581667,-940.13002183,0.00030684,7]
[384933432,1757627581676,-400.0,0.00030684,7]
[384933433,1757627581686,-1253.03,0.00030684,7]
[384933434,1757627581696,-1145.97,0.00030684,7]
[384933435,1757627581706,-1745.67,0.00030684,7]
[384933436,1757627581715,-400.0,0.00030684,7]
[384933437,1757627581723,-727.42,0.00030684,7]
[384933438,1757627581732,-421.27085576,0.00030684,7]
[384933439,1757627581741,-583.39,0.00030684,7]
[384933440,1757627581750,-400.0,0.00030684,7]
[384933441,1757627581759,-400.0,0.00030684,7]
[384933442,1757627581769,-576.54,0.00030684,7]
[384933443,1757627581778,-1541.62,0.00030684,7]
[384933444,1757627581787,-921.85,0.00030684,7]
[384933445,1757627581796,-426.23,0.00030684,7]
[384933446,1757627581805,-1433.65,0.00030684,7]
[384933447,1757627581815,-2304.65,0.00030684,7]
[384933448,1757627581825,-1278.47,0.00030684,7]
[384933449,1757627581835,-400.0,0.00030684,7]
[384933450,1757627581844,-506.5,0.00030684,7]
[384933451,1757627581853,-1307.66,0.00030684,7]
[384933452,1757627581863,-158.163608,0.00030684,7]
[384933453,1757627581872,-400.0,0.00030684,7]
[384933454,1757627581882,-1245.35,0.00030684,7]
[384933455,1757627581891,-1371.0,0.00030684,7]
[384933456,1757627581901,-400.0,0.00030684,7]
[384933457,1757627581910,-400.0,0.00030684,7]
[384933458,1757627581919,-506.24,0.00030684,7]
[384933459,1757627581928,-1050.18,0.00030684,7]
[384933460,1757627581937,-400.0,0.00030684,7]
[384933461,1757627581947,-400.0,0.00030684,7]
[384933462,1757627581956,-1616.64,0.00030684,7]
[384933463,1757627581966,-1120.7,0.00030684,7]
[384933464,1757627581975,-1151.78,0.00030684,7]
[384933465,1757627581985,-521.28,0.00030684,7]
[384933466,1757627581994,-1013.69,0.00030684,7]
[384933467,1757627582003,-400.0,0.00030684,7]
[384933468,1757627582012,-634.88,0.00030684,7]
[384933469,1757627582022,-400.0,0.00030684,7]
[384933470,1757627582031,-2767.55,0.00030684,7]
[384933471,1757627582041,-1117.29,0.00030684,7]
[384933472,1757627582050,-422.28,0.00030684,7]
[384933473,1757627582059,-428.8,0.00030684,7]
[384933474,1757627582069,-1735.26,0.00030684,7]
[384933475,1757627582078,-1678.88,0.00030684,7]
[384933476,1757627582088,-522.94,0.00030684,7]
[384933477,1757627582097,-752.82,0.00030684,7]
[384933478,1757627582106,-412.38,0.00030684,7]
[384933479,1757627582115,-2172.72,0.00030684,7]
[384933480,1757627582125,-479.83,0.00030684,7]
[384933481,1757627582134,-400.0,0.00030684,7]
[384933482,1757627582145,-1991.58,0.00030684,7]
[384933483,1757627582154,-645.68,0.00030684,7]
[384933484,1757627582163,-684.67,0.00030684,7]
[384933485,1757627582173,-400.0,0.00030684,7]
[384933486,1757627582182,-1865.74,0.00030684,7]
[384933487,1757627582192,-1236.15,0.00030684,7]
[384933488,1757627582201,-703.53,0.00030684,7]
[384933489,1757627582211,-2285.17,0.00030684,7]
[384933490,1757627582220,-400.0,0.00030684,7]
[384933491,1757627582230,-1603.43,0.00030684,7]
[384933492,1757627582239,-620.1,0.00030684,7]
[384933493,1757627582248,-1983.9,0.00030684,7]
[384933494,1757627582258,-2163.46,0.00030684,7]
[384933495,1757627582267,-941.57,0.00030684,7]
[384933496,1757627582276,-521.34956373,0.00030684,7]
[384933497,1757627582285,-434.84,0.00030684,7]
[384933498,1757627582294,-1569.39,0.00030684,7]
[384933499,1757627582304,-931.18,0.00030684,7]
[384933500,1757627582314,-400.0,0.00030684,7]
[384933501,1757627582323,-1230.65,0.00030684,7]
[384933502,1757627582332,-2317.42,0.00030684,7]
[384933503,1757627582341,-535.67,0.00030684,7]
[384933504,1757627582353,-644.68,0.00030684,7]
[384933505,1757627582362,-1234.23,0.00030684,7]
[384933506,1757627582371,-919.77,0.00030684,7]
[384933507,1757627582381,-1771.81,0.00030684,7]
[384933508,1757627582390,-400.0,0.00030684,7]
[384933509,1757627582401,-400.0,0.00030684,7]
[384933510,1757627582410,-508.25,0.00030684,7]
[384933511,1757627582420,-2325.79,0.00030684,7]
[384933512,1757627582433,-1609.41,0.00030684,7]
[384933513,1757627582443,-568.33,0.00030684,7]
[384933514,1757627582452,-816.93,0.00030684,7]
[384933515,1757627582463,-1798.92,0.00030684,7]
[384933516,1757627582472,-1386.18,0.00030684,7]
[384933517,1757627582482,-1213.37,0.00030684,7]
[384933518,1757627582491,-400.0,0.00030684,7]
[384933519,1757627582500,-1552.95,0.00030684,7]
[384933520,1757627582510,-400.0,0.00030684,7]
[384933521,1757627582763,-403.06,0.00030684,7]
[384933522,1757627582782,-1732.83,0.00030684,7]
[384933523,1757627582792,-400.0,0.00030684,7]
[384933524,1757627582801,-465.53,0.00030684,7]
[384933525,1757627582811,-400.0,0.00030684,7]
[384933526,1757627582821,-709.04,0.00030684,7]
[384933527,1757627582830,-400.0,0.00030684,7]
[384933528,1757627582839,-2037.8,0.00030684,7]
[384933529,1757627582848,-400.0,0.00030684,7]
[384933530,1757627582858,-1760.98,0.00030684,7]
[384933531,1757627582867,-1465.12,0.00030684,7]
[384933532,1757627582877,-943.48,0.00030684,7]
[384933533,1757627582886,-897.82,0.00030684,7]
[384933534,1757627582895,-400.0,0.00030684,7]
[384933535,1757627582905,-737.11,0.00030684,7]
[384933536,1757627582914,-674.73,0.00030684,7]
[384933537,1757627582923,-666.9,0.00030684,7]
[384933538,1757627582933,-2358.03,0.00030684,7]
[384933539,1757627582943,-1950.94,0.00030684,7]
[384933540,1757627582953,-781.35,0.00030684,7]
[384933541,1757627582962,-610.63,0.00030684,7]
[384933542,1757627582973,-1911.65,0.00030684,7]
[384933543,1757627582982,-1589.11,0.00030684,7]
[384933544,1757627582991,-645.89,0.00030684,7]
[384933545,1757627583000,-2454.36,0.00030684,7]
[384933546,1757627583010,-400.0,0.00030684,7]
[384933547,1757627583020,-429.42,0.00030684,7]
[384933548,1757627583029,-1761.27,0.00030684,7]
[384933549,1757627583039,-2211.08,0.00030684,7]
[384933550,1757627583048,-379.53443152,0.00030684,7]
[384933551,1757627583067,-895.92556848,0.00030684,7]
[384933552,1757627583076,-452.08,0.00030684,7]
[384933553,1757627583086,-903.15,0.00030684,7]
[384933554,1757627583096,-730.4,0.00030684,7]
[384933555,1757627583105,-573.31627291,0.00030684,7]
[384933556,1757627583117,-670.89372709,0.00030684,7]
[384933557,1757627583126,-1272.64,0.00030684,7]
[384933558,1757627583136,-2147.52,0.00030684,7]
[384933559,1757627583145,-1608.5,0.00030684,7]
[384933560,1757627583155,-474.19,0.00030684,7]
[384933561,1757627583164,-193.45757351,0.00030684,2]
[384933562,1757627583175,-468.6,0.00030684,7]
[384933563,1757627583184,-726.05,0.00030684,7]
[384933564,1757627583195,-1333.63,0.00030684,7]
[384933565,1757627583204,-8.57864798,0.00030684,7]